fUSD/lending_fUSD_20250622
["ID","MTS","AMOUNT","RATE_DAILY","PERIOD"]
[366910751,1750566654458,-3851.58,0.00019178,2]
[366910752,1750566654467,-490.0,0.00019178,2]
[366910753,1750566654478,-490.0,0.00019178,2]
[366910754,1750566654488,-490.0,0.00019178,2]
[366910755,1750566654497,-490.0,0.00019178,2]
[366910756,1750566654507,-3284.12,0.00019178,2]
[366910757,1750566654516,-2890.25,0.00019178,2]
[366910758,1750566654526,-490.0,0.00019178,2]
[366910759,1750566654537,-490.0,0.00019178,2]
[366910760,1750566654547,-490.0,0.00019178,2]
[366910761,1750566654557,-490.0,0.00019178,2]
[366910762,1750566654567,-12808.11,0.00019178,2]
[366910763,1750566654576,-944.32,0.00019178,2]
[366910764,1750566654586,-490.0,0.00019178,2]
[366910765,1750566654596,-490.0,0.00019178,2]
[366910766,1750566654606,-490.0,0.00019178,2]
[366910767,1750566654616,-2855.1,0.00019178,2]
[366910768,1750566654626,-589.57,0.00019178,2]
[366910769,1750566654636,-490.0,0.00019178,2]
[366910770,1750566654646,-2952.35,0.00019178,2]
[366910771,1750566654656,-5798.75,0.00019178,2]
[366910772,1750566654665,-490.0,0.00019178,2]
[366910773,1750566654675,-490.0,0.00019178,2]
[366910774,1750566654685,-1650.8,0.00019178,2]
[366910775,1750566654695,-490.0,0.00019178,2]
[366910776,1750566654705,-490.0,0.00019178,2]
[366910777,1750566654715,-12495.88,0.00019178,2]
[366910778,1750566654725,-1735.5,0.00019178,2]
[366910779,1750566654736,-643.22494221,0.00019178,2]
[366910780,1750566654745,-490.0,0.00019178,2]
[366910781,1750566654755,-490.0,0.00019178,2]
[366910782,1750566654765,-490.0,0.00019178,2]
[366910783,1750566654775,-829.78,0.00019178,2]
[366910784,1750566654784,-783.4,0.00019178,2]
[366910785,1750566654798,-494.04556876,0.00019178,2]
[366910786,1750566654808,-1934.78,0.00019178,2]
[366910787,1750566654817,-490.0,0.00019178,2]
[366910788,1750566654827,-4107.81,0.00019178,2]
[366910789,1750566654837,-490.0,0.00019178,2]
[366910790,1750566654846,-2459.58,0.00019178,2]
[366910791,1750566654856,-490.0,0.00019178,2]
[366910792,1750566654868,-4696.88,0.00019178,2]
[366910793,1750566654878,-490.0,0.00019178,2]
[366910794,1750566654888,-652.37,0.00019178,2]
[366910795,1750566654898,-4908.44,0.00019178,2]
[366910796,1750566654908,-3524.76,0.00019178,2]
[366910797,1750566654917,-490.0,0.00019178,2]
[366910798,1750566654927,-490.0,0.00019178,2]
[366910799,1750566654937,-490.0,0.00019178,2]
[366910800,1750566654947,-2153.93,0.00019178,2]
[366910801,1750566654956,-2427.79,0.00019178,2]
[366910802,1750566654966,-679.1,0.00019178,2]
[366910803,1750566654975,-490.0,0.00019178,2]
[366910804,1750566654986,-490.0,0.00019178,2]
[366910805,1750566654996,-490.0,0.00019178,2]
[366910806,1750566655005,-490.0,0.00019178,2]
[366910807,1750566655015,-490.0,0.00019178,2]
[366910808,1750566655024,-490.0,0.00019178,2]
[366910809,1750566655034,-2245.6,0.00019178,2]
[366910810,1750566655044,-490.0,0.00019178,2]
[366910811,1750566655054,-490.0,0.00019178,2]
[366910812,1750566655064,-490.0,0.00019178,2]
[366910813,1750566655074,-490.0,0.00019178,2]
[366910814,1750566655084,-5014.61,0.00019178,2]
[366910815,1750566655093,-292.55554035,0.00019178,2]
[366910816,1750566655103,-490.0,0.00019178,2]
[366910817,1750566655113,-490.0,0.00019178,2]
[366910818,1750566655122,-674.65,0.00019178,2]
[366910819,1750566655131,-490.0,0.00019178,2]
[366910820,1750566655141,-490.0,0.00019178,2]
[366910821,1750566655150,-490.0,0.00019178,2]
[366910822,1750566655159,-490.0,0.00019178,2]
[366910823,1750566655169,-490.0,0.00019178,2]
[366910824,1750566655178,-4655.04,0.00019178,2]
[366910825,1750566655187,-490.0,0.00019178,2]
[366910826,1750566655196,-2575.07,0.00019178,2]
[366910827,1750566655205,-492.01847776,0.00019178,2]
[366910828,1750566655214,-10674.9,0.00019178,2]
[366910829,1750566655223,-2750.53,0.00019178,2]
[366910830,1750566655232,-490.0,0.00019178,2]
[366910831,1750566655241,-490.0,0.00019178,2]
[366910832,1750566655250,-614.72,0.00019178,2]
[366910833,1750566655259,-490.0,0.00019178,2]
[366910834,1750566655269,-490.0,0.00019178,2]
[366910835,1750566655279,-1413.4,0.00019178,2]
[366910836,1750566655290,-490.0,0.00019178,2]
[366910837,1750566655300,-582.65,0.00019178,2]
[366910838,1750566655311,-490.0,0.00019178,2]
[366910839,1750566655323,-490.0,0.00019178,2]
[366910840,1750566655333,-1466.17,0.00019178,2]
[366910841,1750566655344,-925.16,0.00019178,2]
[366910842,1750566655353,-490.0,0.00019178,2]
[366910843,1750566655363,-1448.19,0.00019178,2]
[366910844,1750566655373,-541.88,0.00019178,2]
[366910845,1750566655382,-490.0,0.00019178,2]
[366910846,1750566655392,-3550.61,0.00019178,2]
[366910847,1750566655401,-228.81071643,0.00019178,2]
[366910848,1750566655411,-616.32803484,0.00019178,2]
[366910849,1750566655420,-529.24,0.00019178,2]
[366910850,1750566655429,-490.0,0.00019178,2]
[366910851,1750566655439,-3871.11,0.00019178,2]
[366910852,1750566655449,-490.0,0.00019178,2]
[366910853,1750566655459,-1868.94,0.00019178,2]
[366910854,1750566655467,-4799.23,0.00019178,2]
[366910855,1750566655477,-490.0,0.00019178,2]
[366910856,1750566655576,-490.0,0.00019178,2]
[366910857,1750566655585,-1255.07,0.00019178,2]
[366910858,1750566655595,-1255.07,0.00019178,2]
[366910859,1750566655603,-1255.07,0.00019178,2]
[366910860,1750566655612,-1255.07,0.00019178,2]
[366910861,1750566655621,-2179.68,0.00019178,2]
[366910862,1750566655630,-1255.07,0.00019178,2]
[366910863,1750566655639,-1255.07,0.00019178,2]
[366910864,1750566655649,-490.0,0.00019178,2]
[366910865,1750566655659,-490.0,0.00019178,2]
[366910866,1750566655668,-1255.07,0.00019178,2]
[366910867,1750566655677,-726.79,0.00019178,2]
[366910868,1750566655687,-1170.1,0.00019178,2]
[366910869,1750566655695,-1255.07,0.00019178,2]
[366910870,1750566655705,-490.0,0.00019178,2]
[366910871,1750566655714,-1255.07,0.00019178,2]
[366910872,1750566655724,-490.0,0.00019178,2]
[366910873,1750566655734,-490.0,0.00019178,2]
[366910874,1750566655744,-490.0,0.00019178,2]
[366910875,1750566655754,-500.0,0.00019178,2]
[366910876,1750566655764,-500.0,0.00019178,2]
[366910877,1750566655773,-500.0,0.00019178,2]
[366910878,1750566655782,-500.0,0.00019178,2]
[366910879,1750566655797,-500.0,0.00019178,2]
[366910880,1750566655806,-490.0,0.00019178,2]
[366910881,1750566655816,-582.83528201,0.00019178,2]
[366910882,1750566655825,-1649.82,0.00019178,2]
[366910883,1750566655837,-500.0,0.00019178,2]
[366910884,1750566655847,-490.0,0.00019178,2]
[366910885,1750566655856,-490.0,0.00019178,2]
[366910886,1750566655867,-500.0,0.00019178,2]
[366910887,1750566655877,-500.0,0.00019178,2]
[366910888,1750566655886,-500.0,0.00019178,2]
[366910889,1750566655896,-500.0,0.00019178,2]
[366910890,1750566655906,-405.17083778,0.00019178,2]
[366910891,1750566655916,-490.0,0.00019178,2]
[366910892,1750566655926,-1536.08,0.00019178,2]
[366910893,1750566655936,-490.0,0.00019178,2]
[366910894,1750566655947,-497.5297443,0.00019178,2]
[366910895,1750566655957,-490.0,0.00019178,2]
[366910896,1750566655966,-490.0,0.00019178,2]
[366910897,1750566655975,-2776.12,0.00019178,2]
[366910898,1750566655985,-490.0,0.00019178,2]
[366910899,1750566655994,-2766.56,0.00019178,2]
[366910900,1750566656003,-490.0,0.00019178,2]
[366910901,1750566656012,-490.0,0.00019178,2]
[366910902,1750566656021,-500.0,0.00019178,2]
[366910903,1750566656030,-26376.74,0.00019178,2]
[366910904,1750566656039,-490.0,0.00019178,2]
[366910905,1750566656048,-500.0,0.00019178,2]
[366910906,1750566656057,-490.0,0.00019178,2]
[366910907,1750566656066,-500.0,0.00019178,2]
[366910908,1750566656075,-500.0,0.00019178,2]
[366910909,1750566656085,-490.0,0.00019178,2]
[366910910,1750566656094,-500.0,0.00019178,2]
[366910911,1750566656103,-500.0,0.00019178,2]
[366910912,1750566656112,-1622.54,0.00019178,2]
[366910913,1750566656122,-1067.88,0.00019178,2]
[366910914,1750566656130,-500.0,0.00019178,2]
[366910915,1750566656139,-500.0,0.00019178,2]
[366910916,1750566656149,-500.0,0.00019178,2]
[366910917,1750566656158,-533.84124689,0.00019178,2]
[366910918,1750566656167,-11348.17,0.00019178,2]
[366910919,1750566656176,-861.23,0.00019178,2]
[366910920,1750566656185,-491.46629006,0.00019178,2]
[366910921,1750566656194,-782.32,0.00019178,2]
[366910922,1750566656203,-490.0,0.00019178,2]
[366910923,1750566656212,-14382.97,0.00019178,2]
[366910924,1750566656221,-5251.23,0.00019178,2]
[366910925,1750566656230,-4487.46,0.00019178,2]
[366910926,1750566656239,-3208.63,0.00019178,2]
[366910927,1750566656248,-1666.55,0.00019178,2]
[366910928,1750566656257,-1135.92,0.00019178,2]
[366910929,1750566656266,-490.0,0.00019178,2]
[366910930,1750566656275,-490.0,0.00019178,2]
[366910931,1750566656285,-497.45436539,0.00019178,2]
[366910932,1750566656294,-584.52,0.00019178,2]
[366910933,1750566656303,-592.14,0.00019178,2]
[366910934,1750566656312,-1690.03,0.00019178,2]
[366910935,1750566656321,-490.0,0.00019178,2]
[366910936,1750566656330,-490.0,0.00019178,2]
[366910937,1750566656339,-490.0,0.00019178,2]
[366910938,1750566656349,-995.02,0.00019178,2]
[366910939,1750566656358,-490.0,0.00019178,2]
[366910940,1750566656367,-490.0,0.00019178,2]
[366910941,1750566656377,-243.93026584,0.00019178,2]
[366910942,1750566656387,-6786.77,0.00019178,2]
[366910943,1750566656396,-372.59585803,0.00019178,2]
[366910944,1750566656405,-490.0,0.00019178,2]
[366910945,1750566656414,-3093.79,0.00019178,2]
[366910946,1750566656423,-490.0,0.00019178,2]
[366910947,1750566656433,-185.99887189,0.00019178,2]
[366910948,1750566656442,-1764.02,0.00019178,2]
[366910949,1750566656451,-490.0,0.00019178,2]
[366910950,1750566656460,-490.0,0.00019178,2]
[366910951,1750566656470,-490.0,0.00019178,2]
[366910952,1750566656478,-490.0,0.00019178,2]
[366910953,1750566656488,-2646.23,0.00019178,2]
[366910954,1750566656497,-3245.66,0.00019178,2]
[366910955,1750566656507,-1403.46,0.00019178,2]
[366910956,1750566656516,-490.0,0.00019178,2]
[366910957,1750566656525,-490.0,0.00019178,2]
[366910958,1750566656534,-16972.73,0.00019178,2]
[366910959,1750566656543,-490.0,0.00019178,2]
[366910960,1750566656552,-3304.84,0.00019178,2]
[366910961,1750566656562,-490.0,0.00019178,2]
[366910962,1750566656571,-490.0,0.00019178,2]
[366910963,1750566656580,-1026.53,0.00019178,2]
[366910964,1750566656589,-490.0,0.00019178,2]
[366910965,1750566656599,-365113.17416998,0.00019178,2]
[366910966,1750566656608,-171.45,0.00019178,2]
[366910967,1750566656617,-744.25880383,0.00019178,2]
[366910968,1750566656627,-2107.18464494,0.00019178,2]
[366910969,1750566656637,-666.0,0.00019178,2]
[366910970,1750566656647,-5068.29578611,0.000192,2]
[366910971,1750566656656,-500.0,0.00019205,2]
[366910972,1750566656665,-202.757602,0.00019205,2]
[366910973,1750566656674,-500.0,0.00019205,2]
[366910974,1750566656684,-500.0,0.00019205,2]
[366910975,1750566656693,-150.0,0.00019205,2]
[366910976,1750566656702,-500.0,0.00019205,2]
[366910977,1750566656711,-150.79857448,0.00019205,2]
[366910978,1750566656721,-150.0,0.00019205,2]
[366910979,1750566656731,-150.0,0.00019205,2]
[366910980,1750566656740,-500.0,0.00019205,2]
[366910981,1750566656750,-150.0,0.00019205,2]
[366910982,1750566656760,-500.0,0.00019205,2]
[366910983,1750566656769,-500.0,0.00019205,2]
[366910984,1750566656778,-352.32051416,0.00019205,2]
[366910985,1750566656791,-605.2209032,0.00019205,2]
[366910986,1750566656805,-521.37678721,0.00019205,2]
[366910987,1750566656816,-500.0,0.00019205,2]
[366910988,1750566656826,-5068.29578611,0.0001923,2]
[366910989,1750566656836,-500.99245321,0.00019233,2]
[366910990,1750566656847,-500.68412876,0.00019233,2]
[366910991,1750566656857,-500.0,0.00019233,2]
[366910992,1750566656868,-150.46444261,0.00019233,2]
[366910993,1750566656878,-500.0,0.00019233,2]
[366910994,1750566656887,-150.48351388,0.00019233,2]
[366910995,1750566656897,-150.9151092,0.00019233,2]
[366910996,1750566656906,-221.89726734,0.00019233,2]
[366910997,1750566656916,-150.0,0.00019233,2]
[366910998,1750566656925,-502.66133715,0.00019233,2]
[366910999,1750566656934,-500.0,0.00019233,2]
[366911000,1750566656944,-500.0,0.00019233,2]
[366911001,1750566656953,-180.9730098,0.0001926,2]
[366911002,1750566656963,-152.79956233,0.0001926,2]
[366911003,1750566656972,-500.0,0.0001926,2]
[366911004,1750566656981,-500.0,0.0001926,2]
[366911005,1750566656991,-5068.29578611,0.00019261,2]
[366911006,1750566657000,-342.64482806,0.00019274,2]
[366911007,1750566657010,-500.0,0.00019288,2]
[366911008,1750566657019,-500.0,0.00019288,2]
[366911009,1750566657028,-410.0,0.0001929,2]
[366911010,1750566657038,-5068.29578611,0.00019291,2]
[366911011,1750566657049,-500.0,0.00019315,2]
[366911012,1750566657059,-339.59044936,0.00019315,2]
[366911013,1750566657068,-3852.7,0.00019321,2]
[366911014,1750566657077,-5068.29578611,0.00019322,2]
[366911015,1750566657086,-16264.12419607,0.00019333,2]
[366911016,1750566657096,-999.99,0.00019339,2]
[366911017,1750566657105,-7206.99,0.00019339,2]
[366911018,1750566657114,-9739.68,0.00019339,2]
[366911019,1750566657124,-1483.36,0.00019339,2]
[366911020,1750566657133,-150.99,0.00019339,2]
[366911021,1750566657143,-336.4,0.00019339,2]
[366911022,1750566657152,-9999.99,0.00019339,2]
[366911023,1750566657162,-150.99,0.00019339,2]
[366911024,1750566657171,-359.49837882,0.00019342,2]
[366911025,1750566657181,-289.84837267,0.00019352,2]
[366911026,1750566657190,-162.35736245,0.00019352,2]
[366911027,1750566657199,-5068.29578611,0.00019352,2]
[366911028,1750566657208,-255.41984092,0.00019352,2]
[366911029,1750566657217,-514.06646333,0.00019352,2]
[366911030,1750566657226,-164.42141278,0.00019352,3]
[366911031,1750566657236,-194.0,0.00019367,2]
[366911032,1750566657246,-500.0,0.00019391,2]
[366911033,1750566657255,-500.0,0.00019391,2]
[366911034,1750566657265,-472.24053245,0.00019391,2]
[366911035,1750566657274,-2107.18464494,0.00019392,2]
[366911036,1750566657283,-1899917.76426283,0.00019392,3]
[366911037,1750566658043,-2538.31355788,0.00019392,3]
[366911038,1750566658055,-4469.34245051,0.00019392,3]
[366911039,1750566658075,-402.04444686,0.00019392,3]
[366911040,1750566658091,-582.78092417,0.00019392,3]
[366911041,1750566658102,-5339.87740918,0.00019392,3]
[366911042,1750566658126,-277.57103379,0.00019178,2]
[366911043,1750566658138,-212.42896621,0.00019178,2]
[366911044,1750566658148,-1197.83222453,0.00019392,3]
[366911045,1750566658169,-667.13511448,0.00019392,3]
[366911046,1750566658181,-3692.17428945,0.00019392,3]
[366911047,1750566659636,-361.94537758,0.00018978,2]
[366911048,1750566660439,-638.05462242,0.00018978,2]
[366911049,1750566660448,-1013.60528268,0.00019103,2]
[366911050,1750566660592,-1140.34919897,0.00019103,2]
[366911051,1750566671688,201.0,0.00017135,2]
[366911055,1750567047089,42000.0,0.00024657,120]
[366911056,1750567212653,202.0,0.00017452,2]
[366911075,1750567792406,163.43,0.00013699,2]
[366911079,1750567832657,-202.0,0.00017668,2]
[366911080,1750567832668,-202.0,0.00017668,2]
[366911081,1750567832678,-1200.0,0.00018009,2]
[366911082,1750567832688,-300.0,0.00018009,2]
[366911083,1750567832698,-11926.83,0.0001801,2]
[366911084,1750567832708,-437.95,0.00018036,2]
[366911085,1750567832718,-206.09,0.00018161,2]
[366911086,1750567832728,-1000.0,0.00018174,2]
[366911087,1750567832738,-250.0,0.00018198,2]
[366911088,1750567832748,-220.14397886,0.000183,2]
[366911089,1750567832758,-23900.0,0.00018324,2]
[366911090,1750567832769,-1957.856,0.00018494,2]
[366911091,1750567832778,-207.4,0.00018494,2]
[366911092,1750567832788,-2030.296672,0.00018549,2]
[366911093,1750567832797,-2105.41764886,0.00018604,2]
[366911094,1750567832806,-2183.31810187,0.00018659,2]
[366911095,1750567832816,-2264.10087164,0.00018714,2]
[366911096,1750567832826,-2347.87260389,0.00018769,2]
[366911097,1750567832835,-2434.74389024,0.00018824,2]
[366911098,1750567832845,-500.0,0.00018877,2]
[366911099,1750567832856,-2524.82941417,0.00018879,2]
[366911100,1750567832868,-164.01,0.00018886,2]
[366911101,1750567832879,-202.0,0.00018913,3]
[366911102,1750567832889,-2618.2481025,0.00018934,2]
[366911103,1750567832900,-347.79,0.0001896,2]
[366911104,1750567832910,-500.0,0.00018978,2]
[366911105,1750567832920,-1000.0,0.00018978,2]
[366911106,1750567832930,-2715.12328229,0.00018989,2]
[366911107,1750567832941,-571.06,0.00019,3]
[366911108,1750567832951,-177.5268008,0.00019,2]
[366911109,1750567832961,-455.61,0.00019,2]
[366911110,1750567832971,-170.94,0.00019,2]
[366911111,1750567832982,-150.0,0.00019,2]
[366911112,1750567832992,-300.0,0.00019,2]
[366911113,1750567833001,-455.61,0.00019,2]
[366911114,1750567833011,-455.61,0.00019,2]
[366911116,1750567833022,-851.052,0.00019,2]
[366911118,1750567833032,-531.47,0.00019,2]
[366911120,1750567833042,-798.25,0.00019,2]
[366911122,1750567833053,-2815.58284374,0.00019044,2]
[366911124,1750567833064,-231.87869816,0.00019078,2]
[366911126,1750567833075,-274.7036637,0.00019078,2]
[366911128,1750567833085,-299.81422457,0.00019078,2]
[366911131,1750567833095,-9573.54302672,0.00019078,2]
[366911133,1750567833105,-166.48401675,0.00019078,2]
[366911134,1750567833118,-5000.0,0.00019078,2]
[366911137,1750567833130,-420.6654,0.00019078,2]
[366911139,1750567833141,-228.2364,0.00019078,2]
[366911141,1750567833152,-500.0,0.0001909,2]
[366911144,1750567833163,-2919.75940895,0.00019099,2]
[366911147,1750567833174,-2443.64,0.00019133,2]
[366911149,1750567833185,-500.0,0.00019136,2]
[366911151,1750567833197,-6774.50440185,0.00019139,2]
[366911158,1750567833257,-516.0,0.00019139,2]
[366911161,1750567833285,-889.60819173,0.00019139,2]
[366911164,1750567833306,-366.32636821,0.00019139,2]
[366911284,1750567838404,-1027.10406488,0.00019139,2]
[366911285,1750567838414,-347.76,0.00019152,2]
[366911286,1750567838424,-3027.79050709,0.00019154,2]
[366911287,1750567838434,-151.0,0.00019166,2]
[366911288,1750567838444,-152.21125331,0.00019166,2]
[366911289,1750567838455,-500.0,0.00019166,2]
[366911290,1750567838464,-500.0,0.00019166,2]
[366911291,1750567838474,-155.20482817,0.00019166,2]
[366911292,1750567838483,-668.65185757,0.00019166,2]
[366911293,1750567838493,-500.0,0.00019166,2]
[366911294,1750567838503,-283.03948338,0.00019166,2]
[366911295,1750567838513,-153.04322776,0.00019166,2]
[366911296,1750567838523,-151.0,0.00019166,2]
[366911297,1750567838534,-300.0,0.00019166,2]
[366911298,1750567838544,-151.0,0.00019166,2]
[366911299,1750567838554,-300.0,0.00019166,2]
[366911300,1750567838564,-151.0,0.00019166,2]
[366911301,1750567838576,-300.0,0.00019166,2]
[366911302,1750567838586,-151.0,0.00019166,2]
[366911303,1750567838597,-300.0,0.00019166,2]
[366911304,1750567838608,-151.0,0.00019166,2]
[366911305,1750567838618,-151.0,0.00019166,2]
[366911306,1750567838628,-300.0,0.00019166,2]
[366911307,1750567838638,-300.0,0.00019166,2]
[366911308,1750567838647,-210.13763187,0.00019166,2]
[366911309,1750567838657,-395.26949175,0.00019166,2]
[366911310,1750567838667,-300.0,0.00019166,2]
[366911312,1750567838676,-300.0,0.00019166,2]
[366911314,1750567838685,-500.0,0.00019166,2]
[366911316,1750567838695,-500.0,0.00019166,2]
[366911318,1750567838704,-300.0,0.00019166,2]
[366911319,1750567838714,-500.0,0.00019166,2]
[366911322,1750567838724,-300.0,0.00019166,2]
[366911324,1750567838734,-500.0,0.00019166,2]
[366911326,1750567838744,-300.0,0.00019166,2]
[366911327,1750567838753,-500.0,0.00019166,2]
[366911330,1750567838763,-300.0,0.00019166,2]
[366911332,1750567838773,-500.0,0.00019166,2]
[366911335,1750567838783,-300.0,0.00019166,2]
[366911339,1750567838793,-500.0,0.00019166,2]
[366911341,1750567838802,-500.0,0.00019166,2]
[366911342,1750567838812,-300.0,0.00019166,2]
[366911345,1750567838822,-500.0,0.00019166,2]
[366911347,1750567838832,-300.0,0.00019166,2]
[366911349,1750567838842,-500.0,0.00019166,2]
[366911350,1750567838851,-500.0,0.00019166,2]
[366911352,1750567838860,-153.04511216,0.00019166,2]
[366911355,1750567838871,-168.5591253,0.00019168,2]
[366911357,1750567838880,-319.04,0.00019168,2]
[366911358,1750567838889,-319.04,0.00019168,2]
[366911361,1750567838899,-319.04,0.00019168,2]
[366911362,1750567838909,-501.91571122,0.00019173,2]
[366911364,1750567838919,-500.0,0.00019173,2]
[366911366,1750567838929,-287.74858017,0.00019173,2]
[366911369,1750567838939,-186.91,0.00019177,2]
[366911370,1750567838949,-1321.41118099,0.00019177,5]
[366911372,1750567838959,-164.48497575,0.00019177,2]
[366911374,1750567838968,-500.0,0.00019177,2]
[366911376,1750567838978,-464.12464364,0.00019177,2]
[366911378,1750567838987,-218.25956126,0.00019177,2]
[366911380,1750567838997,-500.0,0.00019177,2]
[366911383,1750567839007,-500.0,0.00019177,2]
[366911385,1750567839017,-527.14112146,0.00019177,2]
[366911386,1750567839027,-693.0,0.00019178,2]
[366911389,1750567839037,-490.0,0.00019178,2]
[366911391,1750567839047,-490.0,0.00019178,2]
[366911418,1750567839056,-490.0,0.00019178,2]
[366911419,1750567839367,-490.0,0.00019178,2]
[366911420,1750567839377,-490.0,0.00019178,2]
[366911421,1750567839387,-490.0,0.00019178,2]
[366911422,1750567839397,-414.7125414,0.00019178,2]
[366911424,1750567839407,-490.0,0.00019178,2]
[366911426,1750567839417,-490.0,0.00019178,2]
[366911428,1750567839427,-490.0,0.00019178,2]
[366911430,1750567839437,-492.76762199,0.00019178,2]
[366911432,1750567839447,-510.39776225,0.00019178,2]
[366911434,1750567839457,-490.0,0.00019178,2]
[366911437,1750567839467,-490.0,0.00019178,2]
[366911438,1750567839476,-490.0,0.00019178,2]
[366911440,1750567839486,-490.0,0.00019178,2]
[366911443,1750567839495,-490.0,0.00019178,2]
[366911445,1750567839505,-490.0,0.00019178,2]
[366911446,1750567839514,-432.87483366,0.00019178,2]
[366911448,1750567839523,-490.0,0.00019178,2]
[366911450,1750567839533,-902.65,0.00019178,2]
[366911452,1750567839543,-490.0,0.00019178,2]
[366911454,1750567839552,-490.0,0.00019178,2]
[366911456,1750567839561,-493.16235209,0.00019178,2]
[366911458,1750567839571,-490.0,0.00019178,2]
[366911460,1750567839580,-490.0,0.00019178,2]
[366911462,1750567839590,-490.0,0.00019178,2]
[366911464,1750567839599,-490.0,0.00019178,2]
[366911466,1750567839609,-490.0,0.00019178,2]
[366911468,1750567839618,-490.0,0.00019178,2]
[366911470,1750567839628,-548.18,0.00019178,2]
[366911472,1750567839637,-490.0,0.00019178,2]
[366911474,1750567839647,-226.73358606,0.00019178,2]
[366911476,1750567839656,-651.6,0.00019178,2]
[366911478,1750567839666,-490.0,0.00019178,2]
[366911480,1750567839675,-490.0,0.00019178,2]
[366911482,1750567839684,-490.0,0.00019178,2]
[366911484,1750567839694,-240.16821507,0.00019178,2]
[366911486,1750567839703,-490.0,0.00019178,2]
[366911487,1750567839713,-490.0,0.00019178,2]
[366911488,1750567839722,-490.0,0.00019178,2]
[366911489,1750567839731,-1000.0,0.00019178,2]
[366911490,1750567839740,-490.0,0.00019178,2]
[366911491,1750567839750,-640.7,0.00019178,2]
[366911492,1750567839760,-301.62296542,0.00019178,2]
[366911493,1750567839770,-490.0,0.00019178,2]
[366911494,1750567839783,-490.0,0.00019178,2]
[366911495,1750567839794,-277.23240058,0.00019178,2]
[366911496,1750567839803,-490.0,0.00019178,2]
[366911497,1750567839813,-490.0,0.00019178,2]
[366911498,1750567839823,-52.66036375,0.00019178,2]
[366911499,1750567839926,-437.33963625,0.00019178,2]
[366911500,1750567839936,-490.0,0.00019178,2]
[366911501,1750567839946,-490.0,0.00019178,2]
[366911502,1750567839955,-490.0,0.00019178,2]
[366911503,1750567839966,-490.0,0.00019178,2]
[366911504,1750567839976,-490.0,0.00019178,2]
[366911505,1750567839986,-435.08189989,0.00019178,2]
[366911506,1750567839996,-490.0,0.00019178,2]
[366911507,1750567840006,-670.48,0.00019178,2]
[366911508,1750567840016,-319.34731282,0.00019178,2]
[366911509,1750567840028,-490.0,0.00019178,2]
[366911510,1750567840038,-490.0,0.00019178,2]
[366911511,1750567840047,-490.0,0.00019178,2]
[366911512,1750567840057,-490.0,0.00019178,2]
[366911513,1750567840067,-490.0,0.00019178,2]
[366911514,1750567840077,-491.05939628,0.00019178,2]
[366911515,1750567840087,-493.48500215,0.00019178,2]
[366911516,1750567840098,-490.0,0.00019178,2]
[366911517,1750567840107,-490.0,0.00019178,2]
[366911518,1750567840121,-883.52,0.00019178,2]
[366911519,1750567840131,-883.52,0.00019178,2]
[366911520,1750567840140,-722.86,0.00019178,2]
[366911521,1750567840150,-490.0,0.00019178,2]
[366911522,1750567840160,-490.0,0.00019178,2]
[366911523,1750567840169,-490.0,0.00019178,2]